bitfinex/quotes_SOLUSD_20220228
["timestamp","ask_amount","ask_price","bid_price","bid_amount"]
[1646023988242,1.45787733,86.788,86.735,23.9595]
[1646023988440,6.0,86.787,86.735,23.9595]
[1646023988841,1.55222663,86.779,86.71,17.3019]
[1646023989041,6.16322663,86.779,86.681,4.611]
[1646023989242,30.3,86.778,86.682,6.0]
[1646023989444,1.38839578,86.777,86.683,4.612]
[1646023989641,6.0,86.776,86.684,6.0]
[1646023989841,5.55240491,86.775,86.685,170.75684507]
[1646023990244,6.0,86.774,86.686,6.0]
[1646023990443,6.0,86.774,86.7,17.3038]
[1646023990643,6.0,86.774,86.701,30.3707]
[1646023992760,4.611,86.773,86.701,30.3707]
[1646023992956,6.0,86.772,86.701,30.3707]
[1646023993158,4.611,86.771,86.701,30.3707]
[1646023993556,6.0,86.772,86.701,30.3707]
[1646023993756,0.73390308,86.773,86.701,30.3707]
[1646023995860,0.73390308,86.773,86.702,115.6]
[1646023996062,0.73390308,86.773,86.711,115.6]
[1646023996263,0.73390308,86.773,86.714,2.72820025]
[1646023996464,0.73390308,86.773,86.715,126.211]
[1646023996864,0.73390308,86.773,86.717,48.12858084]
[1646023997065,0.73390308,86.773,86.718,10.611]
[1646023997365,0.73390308,86.773,86.721,115.6]
[1646023997564,0.73390308,86.773,86.73,17.2972]
[1646023997763,0.73390308,86.773,86.731,6.0]
[1646023998366,0.73390308,86.773,86.732,23.5626]
[1646023998571,0.73390308,86.773,86.733,6.0]
[1646023998767,23.45451575,86.788,86.733,6.0]
[1646023999166,24.84182195,86.788,86.732,23.5626]
[1646023999365,10.61,86.787,86.732,23.5626]
[1646024002267,6.0,86.787,86.732,23.5626]
[1646024002469,4.61,86.786,86.732,23.5626]
[1646024002670,6.0,86.785,86.732,23.5626]
[1646024003268,6.0,86.786,86.732,23.5626]
[1646024003470,17.3026,86.78,86.71,17.3021]
[1646024003669,6.0,86.779,86.712,24.2339]
[1646024003870,4.611,86.778,86.712,24.2339]
[1646024004070,6.0,86.777,86.712,24.2339]
[1646024004270,24.3701,86.776,86.712,24.2339]
[1646024004473,6.0,86.775,86.712,24.2339]
[1646024007074,17.3046,86.77,86.689,4.611]
[1646024007277,17.3046,86.77,86.69,41.169]
[1646024007278,10.612,86.769,86.69,41.169]
[1646024007475,1.52974318,86.768,86.69,23.8633]
[1646024007674,10.612,86.767,86.69,23.8633]
[1646024007874,1.54858949,86.766,86.69,23.8633]
[1646024008077,1.65658617,86.764,86.691,60.11351009]
[1646024008277,10.612,86.763,86.691,60.11351009]
[1646024008475,17.3078,86.76,86.691,60.11351009]
[1646024008675,10.612,86.759,86.691,60.11351009]
[1646024009475,10.612,86.759,86.69,23.8633]
[1646024009676,17.3085,86.75,86.69,23.8633]
[1646024009875,28.6287,86.749,86.69,23.8633]
[1646024010075,28.6287,86.749,86.689,4.611]
[1646024010276,5.96664636,86.748,86.689,4.611]
[1646024010476,7.6576716,86.747,86.69,55.20348462]
[1646024011075,37.03317472,86.739,86.69,55.20348462]
[1646024011276,6.0,86.738,86.69,55.20348462]
[1646024012477,17.3124,86.73,86.689,4.611]
[1646024012684,6.0,86.729,86.689,4.611]
[1646024016583,6.0,86.729,86.642,23.1743]
[1646024016584,17.3145,86.72,86.65,17.3141]
[1646024016784,7.86051656,86.719,86.642,23.1743]
[1646024016984,24.9817,86.718,86.642,23.1743]
[1646024017184,7.80550274,86.717,86.654,50.3424949]
[1646024018691,6.73895496,86.709,86.654,50.3424949]
[1646024018887,30.3795,86.708,86.642,23.1743]
[1646024019088,31.74677411,86.708,86.642,23.1743]
[1646024019285,4.614,86.707,86.642,23.1743]
[1646024019486,6.0,86.706,86.642,23.1743]
[1646024019688,6.0,86.706,86.643,23.2167]
[1646024020188,6.0,86.707,86.643,23.2167]
[1646024020387,17.3186,86.7,86.643,23.2167]
[1646024020586,7.6291538,86.699,86.643,23.2167]
[1646024020787,23.8607,86.698,86.643,23.2167]
[1646024020987,10.615,86.697,86.643,23.2167]
[1646024021387,10.615,86.697,86.644,48.09399421]
[1646024022090,10.615,86.697,86.643,23.2167]
[1646024022289,17.3203,86.69,86.643,23.2167]
[1646024022491,6.0,86.689,86.62,17.3199]
[1646024022692,6.0,86.689,86.621,24.3748]
[1646024023192,6.0,86.689,86.622,53.80958307]
[1646024027213,4.615,86.688,86.622,53.80958307]
[1646024027416,6.0,86.687,86.622,53.80958307]
[1646024028017,22.6489,86.686,86.622,53.80958307]
[1646024028216,6.0,86.685,86.622,53.80958307]
[1646024028416,22.6489,86.686,86.622,53.80958307]
[1646024028417,4.616,86.684,86.622,53.80958307]
[1646024028616,32.06531904,86.683,86.622,53.80958307]
[1646024028816,32.06531904,86.683,86.623,6.0]
[1646024033518,22.6489,86.686,86.623,6.0]
[1646024033719,0.71727532,86.682,86.623,6.0]
[1646024034124,0.71727532,86.682,86.631,115.6]
[1646024034320,0.71727532,86.682,86.633,115.6]
[1646024034523,0.71727532,86.682,86.635,115.6]
[1646024034719,0.71727532,86.682,86.641,115.6]
[1646024034921,0.71727532,86.682,86.643,115.6]
[1646024035123,0.71727532,86.682,86.645,115.6]
[1646024035320,0.71727532,86.682,86.647,115.6]
[1646024035523,0.71727532,86.682,86.649,115.6]
[1646024035721,0.71727532,86.682,86.651,115.6]
[1646024035922,0.71727532,86.682,86.66,17.3113]
[1646024036121,0.71727532,86.682,86.661,6.0]
[1646024038924,0.71727532,86.682,86.67,17.3103]
[1646024039326,23.9733899,86.724,86.67,17.3103]
[1646024039728,23.9733899,86.724,86.671,22.9237]
[1646024045332,6.0,86.723,86.671,22.9237]
[1646024048837,0.72458852,86.722,86.671,22.9237]
[1646024052669,17.3146,86.72,86.661,6.0]
[1646024052868,10.614,86.719,86.633,4.614]
[1646024053170,10.614,86.719,86.609,23.8186]
[1646024053171,1.4293495,86.718,86.621,32.0178722]
[1646024053367,1.66500904,86.716,86.621,27.4038722]
[1646024053567,1.50687626,86.714,86.621,27.4038722]
[1646024053768,10.614,86.713,86.621,27.4038722]
[1646024054168,59.51051552,86.713,86.621,27.4038722]
[1646024054570,7.79278104,86.699,86.63,17.318]
[1646024054768,29.9664,86.698,86.642,22.9775]
[1646024057674,47.5053,86.698,86.642,22.9775]
[1646024059272,0.72001856,86.697,86.642,22.9775]
[1646024061076,2.18367818,86.697,86.642,22.9775]
[1646024061376,17.3205,86.69,86.642,22.9775]
[1646024061576,6.0,86.689,86.642,22.9775]
[1646024061778,10.615,86.689,86.642,22.9775]
[1646024062779,10.615,86.689,86.61,17.3216]
[1646024062979,10.615,86.689,86.611,30.8153]
[1646024063177,10.615,86.689,86.611,77.33793213]
[1646024065680,6.0,86.689,86.611,77.33793213]
[1646024067384,7.59561338,86.689,86.611,71.33793213]
[1646024067584,17.3226,86.68,86.611,71.33793213]
[1646024067785,30.692,86.679,86.611,71.33793213]
[1646024067988,30.692,86.679,86.612,6.0]
[1646024068185,30.692,86.679,86.611,71.33793213]
[1646024068484,4.616,86.678,86.611,71.33793213]
[1646024068685,6.0,86.677,86.611,71.33793213]
[1646024068885,6.0,86.677,86.612,6.0]
[1646024069685,6.0,86.677,86.611,71.33793213]
[1646024070490,6.0,86.677,86.612,6.0]
[1646024070687,6.0,86.677,86.611,71.33793213]
[1646024071089,6.0,86.678,86.611,71.33793213]
[1646024071388,6.0,86.678,86.612,6.0]
[1646024071586,6.0,86.678,86.611,71.33793213]
[1646024071886,6.0,86.678,86.612,6.0]
[1646024072088,6.0,86.678,86.611,71.33793213]
[1646024073091,7.35380418,86.678,86.611,71.33793213]
[1646024073889,0.71617776,86.676,86.611,71.33793213]
[1646024074287,6.71617776,86.676,86.611,71.33793213]
[1646024074488,8.50785208,86.676,86.611,71.33793213]
[1646024075698,6.71617776,86.676,86.611,71.33793213]
[1646024075891,6.0,86.675,86.611,71.33793213]
[1646024076092,0.71617776,86.676,86.611,71.33793213]
[1646024076093,2.26628104,86.676,86.611,71.33793213]
[1646024076292,17.3244,86.67,86.611,71.33793213]
[1646024076493,43.34438872,86.669,86.611,24.8153]
[1646024076693,6.35304345,86.668,86.601,4.615]
[1646024076894,115.6,86.666,86.601,4.615]
[1646024077115,1.70316584,86.663,86.535,2.71884079]
[1646024077299,14.05,86.66,86.536,6.0]
[1646024077500,1.78897085,86.658,86.537,52.23304647]
[1646024077701,1.45370492,86.648,86.537,73.44752443]
[1646024077899,115.6,86.637,86.537,73.44752443]
[1646024078099,1.73308136,86.635,86.537,52.23304647]
[1646024078302,10.619,86.634,86.538,6.0]
[1646024078501,1.58137943,86.633,86.538,6.0]
[1646024078698,1.62743759,86.631,86.538,6.0]
[1646024078900,1.66715494,86.629,86.538,6.0]
[1646024079098,17.3366,86.61,86.54,17.3352]
[1646024079299,30.96991792,86.608,86.54,17.3352]
[1646024079498,7.62847959,86.607,86.54,17.3352]
[1646024079901,7.62847959,86.607,86.541,6.0]
[1646024080100,7.62847959,86.607,86.54,17.3352]
[1646024080300,7.62847959,86.607,86.541,6.0]
[1646024080504,6.11500719,86.606,86.537,52.23304647]
[1646024080704,17.3383,86.6,86.537,52.23304647]
[1646024081004,1.39717359,86.598,86.537,52.23304647]
[1646024082701,4.62,86.603,86.538,6.0]
[1646024082901,6.0,86.602,86.538,6.0]
[1646024083101,6.0,86.603,86.538,6.0]
[1646024084102,6.0,86.603,86.539,115.6]
[1646024084303,7.36678921,86.627,86.541,115.6]
[1646024084502,45.62785636,86.638,86.543,115.6]
[1646024084503,23.7432,86.635,86.543,115.6]
[1646024084727,4.619,86.634,86.545,115.6]
[1646024084925,17.3959,86.644,86.551,115.6]
[1646024085125,10.619,86.643,86.553,115.6]
[1646024085325,10.619,86.643,86.552,8.47057669]
[1646024085326,36.17749553,86.642,86.555,115.6]
[1646024085530,6.0,86.641,86.557,115.6]
[1646024085725,6.0,86.641,86.559,115.6]
[1646024085929,36.17749553,86.642,86.561,115.6]
[1646024086131,36.17749553,86.642,86.57,17.3285]
[1646024086331,36.17749553,86.642,86.571,50.32847408]
[1646024086927,36.17749553,86.642,86.571,73.24207408]
[1646024087127,36.17749553,86.642,86.572,4.618]
[1646024087328,36.17749553,86.642,86.573,6.0]
[1646024087529,36.17749553,86.642,86.574,4.618]
[1646024087729,36.17749553,86.642,86.575,6.0]
[1646024088330,17.3304,86.64,86.573,6.0]
[1646024088530,6.0,86.639,86.573,6.0]
[1646024088735,6.0,86.639,86.572,6.0]
[1646024098854,6.0,86.639,86.571,67.24207408]
[1646024101257,6.0,86.639,86.571,22.9136]
[1646024101458,1.52324271,86.638,86.571,22.9136]
[1646024101658,17.3325,86.63,86.571,22.9136]
[1646024101860,30.0118,86.629,86.571,22.9136]
[1646024102460,4.6191866,86.628,86.551,23.3102]
[1646024102658,17.3344,86.62,86.551,23.3102]
[1646024102858,12.17819916,86.619,86.551,23.3102]
[1646024103058,26.37662358,86.618,86.551,23.3102]
[1646024103259,12.34145118,86.617,86.551,23.3102]
[1646024103479,7.59463415,86.616,86.551,23.3102]
[1646024103679,10.619,86.615,86.551,23.3102]
[1646024104482,17.3366,86.61,86.551,23.3102]
[1646024104679,6.0,86.609,86.551,23.3102]
[1646024107180,4.62,86.615,86.552,6.0]
[1646024107382,4.619,86.632,86.553,115.6]
[1646024107583,22.5229,86.649,86.554,126.219]
[1646024107780,4.618,86.648,86.555,2.88035864]
[1646024107980,4.618,86.648,86.554,145.67969743]
[1646024107981,4.618,86.648,86.571,115.6]
[1646024108180,22.5229,86.649,86.58,17.3259]
[1646024108380,31.84969431,86.648,86.581,63.21367716]
[1646024108981,31.84969431,86.648,86.582,24.7019]
[1646024109182,31.84969431,86.648,86.583,6.0]
[1646024109684,31.84969431,86.648,86.582,24.7019]
[1646024110283,31.84969431,86.648,86.583,6.0]
[1646024110884,6.0,86.647,86.582,24.7019]
[1646024111090,4.618,86.646,86.582,24.7019]
[1646024111490,4.618,86.647,86.582,24.7019]
[1646024112492,6.0,86.646,86.582,24.7019]
[1646024112791,4.618,86.645,86.582,24.7019]
[1646024112996,6.0,86.644,86.582,24.7019]
[1646024113192,6.0,86.646,86.582,24.7019]
[1646024113596,6.0,86.647,86.582,24.7019]
[1646024114297,17.3307,86.64,86.582,24.7019]
[1646024114501,7.47240177,86.639,86.571,22.721]
[1646024114697,6.16888042,86.638,86.571,22.721]
[1646024114908,7.59372811,86.637,86.571,22.721]
[1646024115108,10.34051732,86.637,86.571,22.721]
[1646024115302,6.28489455,86.636,86.571,22.721]
[1646024115503,7.38363434,86.635,86.571,22.721]
[1646024115703,6.29613409,86.634,86.571,22.721]
[1646024115903,7.41012269,86.633,86.571,22.721]
[1646024116104,4.618,86.632,86.571,22.721]
[1646024116306,17.3331,86.63,86.571,22.721]
[1646024116504,10.618,86.629,86.554,4.619]
[1646024116704,1.67146323,86.628,86.554,4.619]
[1646024116904,1.38964115,86.626,86.554,4.619]
[1646024117105,1.54133032,86.624,86.554,4.619]
[1646024117308,17.3359,86.62,86.554,4.619]
[1646024117507,6.0,86.619,86.555,6.0]
[1646024118110,10.619,86.621,86.555,6.0]
[1646024118305,6.0,86.621,86.555,6.0]
[1646024119509,11.92243537,86.622,86.56,17.3311]
[1646024119709,11.92243537,86.622,86.561,6.0]
[1646024121012,11.92243537,86.622,86.561,29.3575]
[1646024123032,17.3323,86.63,86.562,115.6]
[1646024123232,4.619,86.652,86.57,17.3289]
[1646024123433,4.619,86.652,86.572,115.6]
[1646024123634,4.618,86.676,86.575,2.81401514]
[1646024123832,17.3244,86.67,86.578,2.6626701]
[1646024124032,41.86573604,86.669,86.58,115.6]
[1646024124232,6.0,86.668,86.582,115.6]
[1646024124435,29.1179,86.668,86.583,29.5666]
[1646024125538,29.1179,86.668,86.59,17.3244]
[1646024125734,17.3263,86.66,86.591,6.0]
[1646024125935,6.0,86.659,86.583,29.5666]
[1646024126135,23.2349,86.658,86.583,29.5666]
[1646024126336,23.2349,86.658,86.584,115.6]
[1646024126537,23.2349,86.658,86.585,6.0]
[1646024127135,23.2349,86.658,86.584,121.6]
[1646024127336,41.86573604,86.669,86.585,2.87065448]
[1646024127538,6.0,86.668,86.591,115.6]
[1646024127839,6.0,86.668,86.586,8.74678921]
[1646024127840,6.0,86.668,86.594,2.53006241]
[1646024128038,6.0,86.668,86.596,2.40816488]
[1646024128237,6.0,86.668,86.597,6.0]
[1646024129539,6.0,86.668,86.6,17.3223]
[1646024129738,0.71288416,86.658,86.601,6.0]
[1646024130542,0.71288416,86.658,86.595,23.8352]
[1646024131840,0.71288416,86.658,86.596,6.0]
[1646024132341,0.71288416,86.658,86.595,23.8352]
[1646024133345,0.71288416,86.658,86.596,6.0]
[1646024133552,0.71288416,86.658,86.595,23.8352]
[1646024133745,0.71288416,86.658,86.596,6.0]
[1646024134249,11.33079925,86.666,86.596,6.0]
[1646024134648,6.71379925,86.666,86.595,23.8352]
[1646024135348,6.71379925,86.666,86.596,6.0]
[1646024137750,4.617,86.665,86.596,6.0]
[1646024137951,6.0,86.664,86.596,6.0]
[1646024140155,17.3262,86.66,86.595,23.8352]
[1646024140355,6.0,86.659,86.595,23.8352]
[1646024140557,4.617,86.658,86.595,23.8352]
[1646024140756,6.0,86.657,86.595,23.8352]
[1646024140957,4.617,86.656,86.595,23.8352]
[1646024141163,30.1918,86.655,86.595,23.8352]
[1646024143459,24.1918,86.655,86.595,23.8352]
[1646024145762,6.0,86.654,86.595,23.8352]
[1646024146661,24.1918,86.655,86.595,23.8352]
[1646024148060,24.1918,86.655,86.596,6.0]
[1646024148464,0.71251812,86.656,86.597,118.34678921]
[1646024148666,0.71251812,86.656,86.599,115.6]
[1646024148868,0.71251812,86.656,86.601,115.6]
[1646024149067,0.71251812,86.656,86.603,115.6]
[1646024149268,0.71251812,86.656,86.604,121.6]
[1646024149468,33.76726774,86.668,86.605,51.97582155]
[1646024149669,33.76726774,86.668,86.606,6.0]
[1646024149867,33.76726774,86.668,86.607,23.3556]
[1646024150068,33.76726774,86.668,86.608,6.0]
[1646024150869,6.0,86.667,86.608,6.0]
[1646024151070,6.0,86.667,86.607,23.3556]
[1646024151071,28.7051,86.667,86.607,23.3556]
[1646024151471,28.7051,86.667,86.608,6.0]
[1646024152772,28.7051,86.667,86.607,23.3556]
[1646024154380,0.71434815,86.666,86.607,23.3556]
[1646024154772,4.616,86.665,86.607,23.3556]
[1646024155173,6.0,86.664,86.607,23.3556]
[1646024155373,4.617,86.663,86.607,23.3556]
[1646024155575,6.0,86.662,86.607,23.3556]
[1646024155774,4.617,86.661,86.607,23.3556]
[1646024155994,6.0,86.66,86.594,51.8306916]
[1646024156191,17.3287,86.65,86.581,22.9737]
[1646024156492,37.04360103,86.649,86.581,22.9737]
[1646024157196,37.04360103,86.649,86.582,52.87617528]
[1646024157693,10.00486194,86.639,86.582,52.87617528]
[1646024157893,30.0178,86.638,86.582,52.87617528]
[1646024158392,30.0178,86.638,86.581,22.9737]
[1646024160196,47.4962,86.638,86.581,22.9737]
[1646024160896,117.09828159,86.629,86.554,4.619]
[1646024161097,1.72806218,86.627,86.554,4.619]
[1646024161298,115.6,86.625,86.554,4.619]
[1646024161498,1.81966567,86.622,86.554,4.619]
[1646024161698,1.70952088,86.619,86.554,4.619]
[1646024161900,10.619,86.618,86.554,4.619]
[1646024162097,1.65367283,86.617,86.554,4.619]
[1646024162301,1.53036427,86.615,86.554,4.619]
[1646024162499,17.3389,86.61,86.554,4.619]
[1646024162699,35.37742339,86.608,86.554,4.619]
[1646024162899,1.46888181,86.606,86.554,4.619]
[1646024163099,1.66444297,86.604,86.554,4.619]
[1646024163301,1.60129246,86.602,86.554,4.619]
[1646024163498,117.15125757,86.6,86.554,4.619]
[1646024163699,121.6,86.599,86.511,23.2169]
[1646024163900,1.66182794,86.598,86.512,6.0]
[1646024164100,6.0,86.597,86.512,6.0]
[1646024164400,1.42253819,86.595,86.512,6.0]
[1646024164603,120.221,86.596,86.512,6.0]
[1646024164604,115.6,86.589,86.512,6.0]
[1646024164904,1.63716507,86.587,86.512,6.0]
[1646024165102,1.43593432,86.585,86.512,6.0]
[1646024165307,1.8479052,86.583,86.512,6.0]
[1646024165505,8.74678921,86.588,86.512,6.0]
[1646024165506,11.85942242,86.581,86.512,6.0]
[1646024165704,1.71786471,86.579,86.512,6.0]
[1646024165903,17.3445,86.57,86.512,6.0]
[1646024166103,6.0,86.569,86.512,6.0]
[1646024166504,6.0,86.569,86.506,6.0]
[1646024166708,4.622,86.568,86.482,6.0]
[1646024166908,7.42393331,86.567,86.483,23.8929]
[1646024167104,6.20305123,86.566,86.484,6.0]
[1646024167314,6.0,86.565,86.484,6.0]
[1646024167510,6.19468989,86.564,86.484,6.0]
[1646024167709,6.0,86.563,86.484,6.0]
[1646024167905,4.623,86.562,86.484,6.0]
[1646024168106,6.0,86.561,86.484,6.0]
[1646024168308,1.64990668,86.559,86.484,6.0]
[1646024168505,10.623,86.558,86.472,6.0]
[1646024168707,1.58626411,86.557,86.472,6.0]
[1646024169006,1.86881462,86.555,86.472,6.0]
[1646024169208,34.16756812,86.553,86.472,6.0]
[1646024169410,1.63443199,86.551,86.472,6.0]
[1646024169610,17.3522,86.54,86.472,6.0]
[1646024169811,34.3152,86.539,86.472,6.0]
[1646024170410,4.54860828,86.538,86.472,6.0]
[1646024170612,17.3527,86.53,86.44,17.3544]
[1646024170812,17.3527,86.53,86.364,55.86792674]
[1646024170813,115.6,86.528,86.431,23.0752]
[1646024171013,4.625,86.527,86.431,23.0752]
[1646024171211,6.0,86.526,86.431,23.0752]
[1646024171414,1.40319428,86.524,86.431,23.0752]
[1646024171612,1.86722048,86.519,86.431,23.0752]
[1646024171811,1.57448446,86.516,86.431,23.0752]
[1646024172012,1.3775785,86.514,86.432,6.0]
[1646024172217,10.625,86.513,86.432,6.0]
[1646024172414,7.53353297,86.512,86.432,6.0]
[1646024172616,1.54444396,86.509,86.432,6.0]
[1646024172812,1.62881422,86.507,86.432,6.0]
[1646024173012,1.50180596,86.505,86.432,6.0]
[1646024173214,10.625,86.504,86.432,6.0]
[1646024173612,13.37178921,86.504,86.432,6.0]
[1646024173813,2.74678921,86.503,86.432,6.0]
[1646024174017,17.3592,86.5,86.432,6.0]
[1646024174315,32.40835198,86.498,86.432,6.0]
[1646024174514,10.626,86.497,86.432,6.0]
[1646024174715,13.37278921,86.497,86.432,6.0]
[1646024175124,2.74678921,86.496,86.432,6.0]
[1646024175318,6.0,86.495,86.432,6.0]
[1646024175522,17.361,86.49,86.432,6.0]
[1646024175722,6.0,86.489,86.432,6.0]
[1646024176124,8.74678921,86.489,86.432,6.0]
[1646024176423,2.74678921,86.488,86.432,6.0]
[1646024176623,6.0,86.487,86.432,6.0]
[1646024177123,2.74678921,86.487,86.433,115.6]
[1646024177323,4.626,86.523,86.436,2.49736231]
[1646024177524,6.0,86.497,86.437,6.0]
[1646024177727,4.626,86.529,86.439,118.52044045]
[1646024177925,4.625,86.532,86.441,115.6]
[1646024178126,4.625,86.532,86.442,8.57708589]
[1646024178426,4.625,86.532,86.443,6.0]
[1646024178627,4.625,86.532,86.44,6.0]
[1646024178628,17.3547,86.52,86.441,2.78770132]
[1646024178827,17.3547,86.52,86.442,6.0]
[1646024180428,17.3547,86.52,86.45,17.3539]
[1646024180630,6.0,86.519,86.451,6.0]
[1646024180829,33.33794886,86.519,86.451,6.0]
[1646024181029,27.33794886,86.518,86.423,115.6]
[1646024181229,17.3567,86.51,86.432,6.0]
[1646024181432,47.720785,86.509,86.432,6.0]
[1646024181631,75.05873386,86.509,86.432,6.0]
[1646024182844,47.720785,86.509,86.432,6.0]
[1646024187045,43.095785,86.509,86.432,6.0]
[1646024189950,4.625,86.508,86.432,6.0]
[1646024190153,6.0,86.507,86.432,6.0]
[1646024190556,6.0,86.507,86.44,17.3558]
[1646024190751,37.095785,86.509,86.441,8.78002396]
[1646024191553,37.095785,86.509,86.443,118.63774999]
[1646024191755,37.095785,86.509,86.444,6.0]
[1646024192554,37.095785,86.509,86.45,17.3541]
[1646024192753,37.095785,86.509,86.451,8.50584126]
[1646024192952,37.095785,86.509,86.451,6.0]
[1646024193354,37.095785,86.509,86.445,6.0]
[1646024193556,37.095785,86.509,86.447,2.3787527]
[1646024193756,37.095785,86.509,86.45,2.80864306]
[1646024193956,37.095785,86.509,86.452,115.6]
[1646024194155,37.095785,86.509,86.453,121.6]
[1646024194356,37.095785,86.509,86.454,6.0]
[1646024194557,37.095785,86.509,86.461,43.76258384]
[1646024194756,37.095785,86.509,86.462,6.0]
[1646024195559,37.095785,86.509,86.45,20.16234306]
[1646024195761,2.74678921,86.508,86.422,2.86604528]
[1646024195959,6.0,86.507,86.443,6.0]
[1646024196559,6.0,86.507,86.444,50.53731798]
[1646024196760,6.0,86.507,86.445,6.0]
[1646024198065,37.095785,86.509,86.445,6.0]
[1646024198066,4.625,86.521,86.445,6.0]
[1646024198264,24.6425,86.529,86.445,6.0]
[1646024198464,24.6425,86.529,86.445,8.90077526]
[1646024198864,24.6425,86.529,86.446,115.6]
[1646024199064,40.8523479,86.527,86.447,8.54569322]
[1646024199263,40.8523479,86.527,86.447,2.54569322]
[1646024199462,40.8523479,86.527,86.45,17.3537]
[1646024199664,40.8523479,86.527,86.451,6.0]
[1646024200065,40.8523479,86.527,86.452,24.1146]
[1646024200264,40.8523479,86.527,86.453,6.0]
[1646024200867,6.0,86.526,86.453,6.0]
[1646024204068,6.0,86.526,86.453,121.6]
[1646024204269,6.0,86.526,86.461,115.6]
[1646024204469,22.728,86.539,86.463,115.6]
[1646024204669,22.728,86.539,86.465,115.6]
[1646024204868,22.728,86.539,86.467,115.6]
[1646024205072,22.728,86.539,86.47,2.75281755]
[1646024205269,22.728,86.539,86.471,58.04055234]
[1646024205270,34.64243633,86.538,86.471,58.04055234]
[1646024205472,34.64243633,86.538,86.472,2.65371864]
[1646024205669,34.64243633,86.538,86.473,6.0]
[1646024206369,34.64243633,86.538,86.474,24.6374]
[1646024206570,34.64243633,86.538,86.475,6.0]
[1646024208876,34.6126946,86.538,86.475,6.0]
[1646024210182,6.0,86.537,86.474,24.6374]
[1646024210582,29.0559,86.536,86.474,24.6374]
[1646024210787,6.0,86.535,86.474,24.6374]
[1646024210984,4.624,86.534,86.474,24.6374]
[1646024211188,6.0,86.533,86.474,24.6374]
[1646024211884,6.0,86.534,86.474,24.6374]
[1646024212084,6.0,86.535,86.474,24.6374]
[1646024213887,4.624,86.534,86.474,24.6374]
[1646024214087,17.3527,86.53,86.46,17.3516]
[1646024214287,17.3527,86.53,86.453,23.747]
[1646024214288,6.0,86.529,86.461,23.086]
[1646024214989,6.0,86.529,86.462,66.10087534]
[1646024215192,6.0,86.529,86.463,115.6]
[1646024215491,22.728,86.539,86.464,6.0]
[1646024216599,22.728,86.539,86.47,17.3497]
[1646024216797,22.728,86.539,86.471,6.0]
[1646024217398,22.728,86.539,86.472,22.5209]
[1646024217599,22.728,86.539,86.473,6.0]
[1646024219800,12.02310674,86.535,86.473,6.0]
[1646024220000,1.56306162,86.534,86.472,22.5209]
[1646024220199,6.0,86.533,86.472,22.5209]
[1646024220399,7.68700839,86.533,86.472,22.5209]
[1646024220601,6.45854362,86.532,86.472,22.5209]
[1646024220800,6.0,86.531,86.472,22.5209]
[1646024221101,4.624,86.53,86.472,22.5209]
[1646024221302,7.42089449,86.529,86.472,22.5209]
[1646024221501,6.099053,86.528,86.472,22.5209]
[1646024221902,7.59896854,86.527,86.472,22.5209]
[1646024222101,9.12969335,86.525,86.472,22.5209]
[1646024222299,1.55723804,86.523,86.472,22.5209]
[1646024222501,10.624,86.524,86.472,22.5209]
[1646024222502,17.3546,86.52,86.472,22.5209]